bitfinex-derivatives/quotes_ETHF0:USTF0_20240818
["timestamp","ask_amount","ask_price","bid_price","bid_amount"]
[1724000099456,14.93807477,2671.2,2671.1,0.00750289]
[1724000099656,11.99478,2671.2,2671.1,0.00750289]
[1724000100651,15.42914964,2671.2,2671.1,0.00750289]
[1724000101350,11.99478,2671.2,2671.1,0.00750289]
[1724000101654,16.99478,2671.2,2670.7,0.3444]
[1724000101857,0.943,2670.8,2670.7,0.3444]
[1724000102248,5.0441,2670.8,2670.7,0.3444]
[1724000102451,1.3001,2670.8,2670.7,0.3444]
[1724000102652,5.0441,2670.8,2670.7,0.3444]
[1724000102856,1.3001,2670.8,2670.7,0.34730576]
[1724000103263,0.943,2670.8,2670.7,0.34730576]
[1724000104159,2.81467,2670.8,2670.7,0.34730576]
[1724000104865,0.943,2670.8,2670.7,0.34730576]
[1724000105070,6.02247,2670.8,2670.7,0.34730576]
[1724000107266,9.76647,2670.8,2670.7,0.00290576]
[1724000108263,9.76647,2670.8,2670.3,0.3654]
[1724000108464,0.943,2670.4,2670.3,0.7353]
[1724000108670,2.81495,2670.4,2670.3,0.7353]
[1724000109265,3.16665,2670.4,2670.3,0.73888129]
[1724000109666,2.81495,2670.4,2670.3,0.00358129]
[1724000111463,3.2078,2670.5,2670.3,1.87555129]
[1724000111772,3.2078,2670.5,2670.4,2.24465]
[1724000111961,3.2078,2670.5,2670.4,0.723]
[1724000114064,4.1508,2670.5,2670.4,0.723]
[1724000115865,4.1508,2670.5,2670.4,0.3727]
[1724000116677,4.1508,2670.5,2670.4,2.24465]
[1724000116865,4.1508,2670.5,2670.4,2.61475]
[1724000117460,4.1508,2670.5,2670.4,0.7428]
[1724000118863,4.1508,2670.5,2670.4,0.3727]
[1724000120070,6.02268,2670.5,2670.4,0.3727]
[1724000123768,2.81488,2670.5,2670.4,0.3727]
[1724000123972,6.02268,2670.5,2670.4,0.3727]
[1724000135885,2.81488,2670.5,2670.4,0.3727]
[1724000136178,6.02268,2670.5,2670.4,0.3727]
[1724000137287,2.81488,2670.5,2670.4,0.3727]
[1724000137690,6.02268,2670.5,2670.4,0.3727]
[1724000139791,2.81488,2670.5,2670.4,0.3727]
[1724000140093,6.02268,2670.5,2670.4,0.3727]
[1724000144185,1.87195,2670.4,2670.3,0.00358129]
[1724000146093,7.4887,2670.4,2670.3,0.00358129]
[1724000146399,10.4312007,2670.4,2670.3,0.00358129]
[1724000146782,10.4312007,2670.4,2669.8,0.3392]
[1724000146783,1.8723,2669.9,2669.8,0.3392]
[1724000147101,1.87252,2669.6,2669.2,1.87277]
[1724000147392,5.08032,2669.6,2669.3,0.7042]
[1724000147800,5.08032,2669.6,2669.3,0.70703336]
[1724000148495,2.81565,2669.4,2669.3,0.70703336]
[1724000148691,2.81947919,2669.4,2669.3,0.70703336]
[1724000149007,0.94682919,2669.4,2669.3,0.70703336]
[1724000149291,2.81947919,2669.4,2669.3,0.70703336]
[1724000149592,0.94682919,2669.4,2669.3,0.70703336]
[1724000149793,6.56587919,2669.4,2668.7,1.87311]
[1724000149999,6.56587919,2669.4,2668.6,0.97621544]
[1724000150000,1.8729,2669.1,2668.9,0.3427]
[1724000150892,5.08063,2669.2,2668.9,0.34677117]
[1724000151101,0.943,2669.0,2668.9,0.34677117]
[1724000152683,4.6894,2669.0,2668.9,0.00407117]
[1724000152996,6.56233,2669.0,2668.9,0.00407117]
[1724000160598,2.81593,2669.0,2668.9,0.00407117]
[1724000162299,1.87289,2669.1,2668.9,0.00407117]
[1724000162499,3.21341935,2669.2,2668.9,0.00407117]
[1724000162724,0.943,2669.0,2668.9,0.36617117]
[1724000163298,0.943,2669.0,2668.9,0.00407117]
[1724000168707,2.81593,2669.0,2668.9,0.00407117]
[1724000173509,6.56233,2669.0,2668.9,0.00407117]
[1724000174407,2.81593,2669.0,2668.9,0.00407117]
[1724000174804,3.18633,2669.0,2668.9,0.00407117]
[1724000176110,6.93273,2669.0,2668.9,0.00407117]
[1724000177905,10.14053,2669.0,2668.9,0.00407117]
[1724000178806,6.39413,2669.0,2668.9,0.00407117]
[1724000179207,5.08073,2669.0,2668.9,0.00407117]
[1724000179415,6.02373,2669.0,2668.9,0.00407117]
[1724000182007,9.77013,2669.0,2668.9,0.00407117]
[1724000182208,6.02373,2669.0,2668.9,0.00407117]
[1724000182516,9.77013,2669.0,2668.9,0.00407117]
[1724000183915,1.87314,2668.7,2668.6,0.3509]
[1724000184109,5.08094,2668.7,2668.6,0.3509]
[1724000184302,5.08094,2668.7,2668.5,0.3423]
[1724000184303,1.87321,2668.6,2668.5,0.3423]
[1724000184504,2.81621,2668.6,2668.5,0.3423]
[1724000184903,2.81621,2668.6,2668.5,0.34676581]
[1724000187219,6.02401,2668.6,2668.5,0.34676581]
[1724000187715,2.81621,2668.6,2668.5,0.34676581]
[1724000187911,6.02401,2668.6,2668.5,0.34676581]
[1724000191720,2.81621,2668.6,2668.5,0.34676581]
[1724000191929,6.02401,2668.6,2668.5,0.34676581]
[1724000192423,2.81621,2668.6,2668.5,0.34676581]
[1724000192617,6.02401,2668.6,2668.5,0.34676581]
[1724000192819,2.81621,2668.6,2668.5,0.34676581]
[1724000193025,6.02401,2668.6,2668.5,0.34676581]
[1724000194524,6.02401,2668.6,2668.5,0.00446581]
[1724000195027,1.87335,2668.4,2668.3,0.3536]
[1724000195225,2.81635,2668.4,2668.3,0.3536]
[1724000196021,2.81635,2668.4,2668.3,0.3572295]
[1724000198433,2.81635,2668.4,2668.3,0.0036295]
[1724000198926,6.56435,2668.4,2668.3,0.0036295]
[1724000200628,5.08115,2668.4,2668.3,0.0036295]
[1724000200835,4.1508,2668.4,2668.3,0.0036295]
[1724000201129,4.1508,2668.4,2668.3,0.3742295]
[1724000201825,6.02415,2668.4,2668.3,0.3742295]
[1724000203027,4.1508,2668.4,2668.3,0.3742295]
[1724000203231,4.1508,2668.4,2668.3,0.7375295]
[1724000203432,6.02415,2668.4,2668.3,0.7375295]
[1724000204420,4.1508,2668.4,2668.3,0.7375295]
[1724000205035,6.02415,2668.4,2668.3,0.7375295]
[1724000205235,6.02415,2668.4,2668.3,0.3742295]
[1724000207032,6.38325,2668.4,2668.3,0.3742295]
[1724000208835,10.13125,2668.4,2668.3,0.0036295]
[1724000209035,12.0046,2668.4,2668.3,0.0036295]
[1724000209338,12.0046,2668.4,2668.3,0.3683295]
[1724000209842,12.0046,2668.4,2668.3,0.0036295]
[1724000210430,8.2566,2668.4,2668.3,0.0036295]
[1724000211525,8.2566,2668.4,2668.3,0.3401295]
[1724000211728,8.7968,2668.4,2668.3,0.3401295]
[1724000212025,12.0046,2668.4,2668.3,0.3401295]
[1724000212228,8.2566,2668.4,2668.3,0.3401295]
[1724000213432,6.38325,2668.4,2668.3,0.3401295]
[1724000215027,6.02415,2668.4,2668.3,0.3401295]
[1724000218741,2.81635,2668.4,2668.3,0.3401295]
[1724000219050,6.02415,2668.4,2668.3,0.3401295]
[1724000221648,4.1508,2668.4,2668.3,0.3401295]
[1724000224040,3.2078,2668.4,2668.3,5.9615495]
[1724000224345,10.42587669,2668.9,2668.5,1.87323]
[1724000224547,10.42587669,2668.9,2668.6,0.6968]
[1724000224548,1.87309,2668.8,2668.6,0.6968]
[1724000224748,3.2078,2668.7,2668.6,0.6968]
[1724000225743,4.1508,2668.7,2668.6,4.444]
[1724000226445,4.1508,2668.7,2668.6,6.67631]
[1724000226650,4.1508,2668.7,2668.6,4.8031]
[1724000227042,3.2078,2668.7,2668.6,6.67631]
[1724000227249,3.2078,2668.7,2668.6,11.67631]
[1724000227250,0.943,2668.7,2668.6,11.67631]
[1724000227951,3.2078,2669.0,2668.6,9.8031]
[1724000228150,0.943,2668.7,2668.6,6.67631]
[1724000228647,0.943,2668.7,2668.6,11.67631]
[1724000231150,3.2078,2669.0,2668.9,1.873]
[1724000231350,4.1508,2669.0,2668.9,5.6194]
[1724000231556,4.1508,2669.0,2668.9,10.6194]
[1724000232685,4.1508,2669.0,2668.9,5.6194]
[1724000233959,4.1508,2669.0,2668.6,1.0559]
[1724000234156,2.81614,2668.7,2668.6,0.3481]
[1724000234457,6.02394,2668.7,2668.6,0.3481]
[1724000235057,1.87314,2668.7,2668.6,4.0953]
[1724000235367,0.943,2668.7,2668.6,5.96851]
[1724000235561,2.81614,2668.7,2668.6,4.0953]
[1724000236162,0.943,2668.7,2668.6,5.96851]
[1724000236464,3.2078,2669.0,2668.9,1.873]
[1724000236671,4.1508,2669.0,2668.9,1.873]
[1724000236861,4.1508,2669.0,2668.9,5.6194]
[1724000238165,4.1508,2669.0,2668.9,3.7464]
[1724000239169,4.1508,2669.0,2668.9,5.6194]
[1724000239761,3.2078,2669.0,2668.9,5.6194]
[1724000239956,4.1508,2669.0,2668.9,5.6194]
[1724000241569,0.943,2669.0,2668.9,5.6194]
[1724000241964,0.943,2669.0,2668.9,3.7464]
[1724000247677,1.87313,2668.8,2668.6,0.3481]
[1724000247978,2.81613,2668.8,2668.6,0.3481]
[1724000249875,1.87313,2668.8,2668.6,0.3481]
[1724000250177,0.943,2668.7,2668.6,0.3481]
[1724000250382,2.81614,2668.7,2668.6,0.3481]
[1724000250681,3.17144,2668.7,2668.6,0.3481]
[1724000252375,3.17144,2668.7,2668.3,6.7610295]
[1724000252576,0.6943,2668.6,2668.4,0.3666]
[1724000252779,2.56753,2668.6,2668.4,0.3666]
[1724000254788,0.6943,2668.6,2668.4,5.98715]
[1724000254978,0.943,2668.5,2668.4,5.98715]
[1724000255178,0.943,2668.5,2668.4,2.23995]
[1724000255383,0.943,2668.5,2668.4,10.98715]
[1724000256086,0.943,2668.5,2668.4,5.98715]
[1724000256475,0.943,2668.5,2668.4,10.98715]
[1724000259282,0.943,2668.5,2668.4,5.98715]
[1724000261387,0.943,2668.5,2668.4,4.1138]
[1724000262792,2.81628,2668.5,2668.4,4.1138]
[1724000263288,0.943,2668.5,2668.4,4.1138]
[1724000263478,2.81628,2668.5,2668.4,4.1138]
[1724000264782,0.943,2668.5,2668.4,4.1138]
[1724000265480,0.943,2668.5,2668.4,0.3666]
[1724000266081,2.81628,2668.5,2668.4,0.3666]
[1724000266491,0.943,2668.5,2668.4,0.3666]
[1724000271492,0.943,2668.5,2668.4,5.98715]
[1724000275289,3.2078,2668.8,2668.6,1.87319]
[1724000275290,1.87307,2668.8,2668.6,1.87319]
[1724000275496,0.943,2668.7,2668.6,1.87319]
[1724000277388,0.943,2668.7,2668.5,2.23486]
[1724000277591,0.943,2668.7,2668.5,1.87326]
[1724000277592,2.81615,2668.7,2668.5,1.87326]
[1724000277798,0.355,2668.6,2668.4,0.3666]
[1724000277998,3.53528,2668.5,2668.4,0.3666]
[1724000278195,3.53528,2668.5,2668.3,0.0036295]
[1724000278699,1.87335,2668.4,2668.3,0.0036295]
[1724000279092,3.53533,2668.5,2668.3,0.0036295]
[1724000279903,1.87335,2668.4,2668.3,0.0036295]
[1724000281691,3.53533,2668.5,2668.3,0.0036295]
[1724000282190,1.87335,2668.4,2668.3,0.0036295]
[1724000286195,3.53533,2668.5,2668.3,0.0036295]
[1724000286396,1.87335,2668.4,2668.3,0.0036295]
[1724000287900,3.53532,2668.5,2668.3,0.0036295]
[1724000289801,1.87335,2668.4,2668.3,0.0036295]
[1724000290398,3.53533,2668.5,2668.3,0.0036295]
[1724000291100,1.662,2668.5,2668.3,0.0036295]
[1724000291400,1.662,2668.5,2668.4,1.87335]
[1724000292008,1.3117,2668.5,2668.4,5.62055]
[1724000292299,1.3117,2668.5,2668.4,5.95845]
[1724000293299,1.3117,2668.5,2668.4,1.87335]
[1724000294191,1.3117,2668.5,2668.4,5.62055]
[1724000298593,1.3117,2668.5,2668.4,1.87335]
[1724000298999,1.3117,2668.5,2668.4,5.62055]
[1724000299196,1.3117,2668.5,2668.4,1.87335]
[1724000299612,1.6593,2668.5,2668.4,1.87335]
[1724000302111,1.6593,2668.5,2668.4,2.23975]
[1724000310313,1.6593,2668.5,2668.3,0.0036295]
[1724000310314,3.53258,2668.5,2668.3,1.8769995]
[1724000310515,1.6593,2668.5,2668.4,1.87335]
[1724000310706,3.53258,2668.5,2668.3,1.8770095]
[1724000311110,1.6593,2668.5,2668.3,1.8770095]
[1724000311311,3.53258,2668.5,2668.3,1.8770095]
[1724000311714,1.87335,2668.4,2668.3,0.0036295]
[1724000312512,3.7467,2668.4,2668.3,0.0036295]
[1724000312715,6.68464669,2668.4,2668.3,0.0036295]
[1724000314725,4.81129669,2668.4,2668.3,0.0036295]
[1724000315818,1.87335,2668.4,2668.3,0.0036295]
[1724000316025,0.943,2668.4,2668.3,0.0036295]
[1724000316512,5.79743,2668.5,2668.3,0.0036295]
[1724000316513,3.9241,2668.5,2668.3,0.0036295]
[1724000316717,0.943,2668.4,2668.3,0.0036295]
[1724000316911,0.943,2668.4,2668.3,2.2205495]
[1724000322028,0.943,2668.4,2668.3,0.3471295]
[1724000322331,1.3044,2668.4,2668.3,0.0036295]
[1724000323646,3.17775,2668.4,2668.3,0.0036295]
[1724000323937,1.3044,2668.4,2668.3,0.0036295]
[1724000324335,6.38555,2668.4,2668.3,0.0036295]
[1724000324526,3.17775,2668.4,2668.3,0.0036295]
[1724000324730,2.81635,2668.4,2668.3,0.0036295]
[1724000325630,0.943,2668.4,2668.3,0.0036295]
[1724000326337,0.943,2668.4,2668.3,1.8770495]
[1724000326733,0.943,2668.4,2668.3,2.2470495]
[1724000328029,4.1508,2668.4,2668.3,0.0036295]
[1724000328230,6.02415,2668.4,2668.3,0.0036295]
[1724000328730,6.36295,2668.4,2668.3,0.0036295]
[1724000334343,8.2363,2668.4,2668.3,0.0036295]
[1724000340248,11.9843,2668.4,2668.3,0.0036295]
[1724000342150,8.81508697,2668.4,2668.3,0.0036295]
[1724000342851,12.56308697,2668.4,2668.3,0.0036295]
[1724000343549,8.81508697,2668.4,2668.3,0.0036295]
[1724000345157,6.36295,2668.4,2668.3,0.0036295]
[1724000346643,2.45092438,2668.6,2668.3,3.7516295]
[1724000346843,2.45092438,2668.6,2668.5,1.87328]
[1724000347044,3.39392438,2668.7,2668.6,1.87321]
[1724000347244,3.39392438,2668.7,2668.6,2.23441]
[1724000348945,3.39392438,2668.7,2668.5,1.87324]
[1724000349146,2.81624,2668.6,2668.4,0.3504]
[1724000349352,2.45092438,2668.5,2668.4,0.3504]
[1724000349545,3.84184,2668.6,2668.4,0.3504]
[1724000349546,6.29276438,2668.6,2668.4,2.22375]
[1724000349856,4.41952438,2668.6,2668.4,2.22375]
[1724000350057,6.29274438,2668.6,2668.4,2.22375]
[1724000350559,2.45092438,2668.5,2668.4,2.22375]
[1724000350753,6.29274438,2668.6,2668.4,2.22375]
[1724000351546,2.45092438,2668.5,2668.4,2.22375]
[1724000351845,6.29274438,2668.6,2668.4,2.22375]
[1724000352259,3.84182,2668.6,2668.4,2.22375]
[1724000353550,3.84182,2668.6,2668.4,2.56145]
[1724000354053,3.84182,2668.6,2668.4,2.56141]
[1724000354054,2.45112321,2668.5,2668.4,2.56141]
[1724000354384,1.9686,2668.6,2668.5,1.87328]
[1724000354551,1.2867,2668.6,2668.5,1.87328]
[1724000354750,3.15991,2668.6,2668.5,1.87328]
[1724000356453,3.15991,2668.6,2668.4,2.93211]
[1724000356754,1.2867,2668.6,2668.5,1.87328]
[1724000358159,0.943,2668.6,2668.5,1.87328]
[1724000358752,3.2078,2668.7,2668.6,1.87321]
[1724000358967,4.1508,2668.7,2668.6,1.87321]
[1724000359764,0.943,2668.7,2668.6,1.87321]
[1724000360155,8.37629669,2668.9,2668.7,1.87313]
[1724000360355,8.37629669,2668.9,2668.8,2.23867]
[1724000360356,2.45079932,2668.9,2668.8,2.23867]
[1724000360554,0.943,2668.9,2668.8,2.23867]
[1724000361060,3.39379932,2668.9,2668.8,5.98587]
[1724000361264,0.943,2668.9,2668.8,5.98587]
[1724000363454,1.2941,2668.9,2668.8,2.23867]
[1724000363761,5.61789932,2668.9,2668.8,0.3656]
[1724000363951,10.69989932,2668.9,2668.3,7.3874295]
[1724000364150,4.32397932,2668.7,2668.5,0.3562]
[1724000364351,4.32397932,2668.7,2668.5,2.22945]
[1724000364555,4.69557932,2668.7,2668.5,2.22945]
[1724000364750,1.87321,2668.6,2668.5,2.22945]
[1724000364951,4.69558932,2668.7,2668.5,2.22945]
[1724000365262,0.943,2668.6,2668.5,2.22945]
[1724000366352,2.78959932,2668.8,2668.5,2.22945]
[1724000366353,4.66266932,2668.8,2668.7,1.87314]
[1724000366560,5.60566932,2668.8,2668.6,1.87317]
[1724000366760,0.943,2668.7,2668.6,1.87317]
[1724000367354,3.39379932,2668.7,2668.6,1.87317]
[1724000371360,0.943,2668.7,2668.6,1.87317]
[1724000371865,3.39379932,2668.7,2668.6,1.87317]
[1724000372065,0.943,2668.7,2668.6,1.87317]
[1724000372660,2.45079932,2668.8,2668.7,3.74628]
[1724000372860,2.45641867,2669.2,2669.1,1.87286]
[1724000373255,0.00561935,2669.2,2669.1,1.87286]
[1724000373461,0.00561935,2669.2,2669.1,2.56556]
[1724000374455,0.00382919,2669.4,2669.3,1.87272]
[1724000374657,0.00382919,2669.4,2669.3,2.81572]
[1724000374864,0.00382919,2669.4,2669.3,6.56212]
[1724000375168,0.00382919,2669.4,2669.3,11.56212]
[1724000375665,0.00382919,2669.4,2669.3,6.56212]
[1724000381979,0.00382919,2669.4,2669.3,8.43484]
[1724000382166,0.00561935,2669.6,2669.5,3.74516]
[1724000382358,0.00561935,2669.6,2669.5,4.68816]
[1724000382666,0.00561935,2669.6,2669.5,8.43376]
[1724000382871,0.00561935,2669.6,2669.5,9.13446]
[1724000383061,0.00956679,2669.6,2669.5,9.13446]
[1724000384567,0.00956679,2669.6,2669.5,14.13446]
[1724000387077,0.00956679,2669.6,2669.5,12.26188]
[1724000387371,0.00956679,2669.6,2669.5,7.26188]
[1724000389367,0.00956679,2669.6,2669.5,6.90668]
[1724000389574,0.00956679,2669.6,2669.5,6.56118]
[1724000390671,0.00956679,2669.6,2669.5,8.43376]
[1724000401182,0.00956679,2669.6,2669.5,7.49076]
[1724000401482,1.87279,2669.2,2669.1,0.00561935]
[1724000401846,2.81579,2669.2,2669.1,0.00561935]
[1724000401976,6.56219,2669.2,2669.1,0.00561935]
[1724000402178,6.56219,2669.2,2668.3,1.8770195]
[1724000402179,1.87318,2668.7,2668.5,5.119]
[1724000402486,1.87318,2668.7,2668.3,3.2114295]
[1724000402487,0.7179,2668.6,2668.3,4.1544295]
[1724000402673,1.0574,2668.6,2668.4,0.943]
[1724000403079,1.0574,2668.6,2668.4,2.81634]
[1724000404374,1.0574,2668.6,2668.5,1.87328]
[1724000404586,1.0574,2668.6,2668.5,2.81628]
[1724000405685,0.7179,2668.6,2668.5,2.81628]
[1724000406383,0.3619,2668.6,2668.5,2.81628]
[1724000406681,0.6999,2668.9,2668.8,1.87307]
[1724000406996,1.0569,2668.9,2668.8,2.81607]
[1724000407382,0.357,2668.9,2668.8,6.56327]
[1724000407578,0.3404,2669.1,2669.0,1.87293]
[1724000407781,0.7165,2669.4,2669.2,1.87275]
[1724000407988,1.0569,2669.4,2669.2,0.943]
[1724000408193,1.0569,2669.4,2669.2,2.81578]
[1724000408482,1.0569,2669.4,2669.2,1.87278]
[1724000408993,2.92955,2669.4,2669.1,1.87283]
[1724000409885,1.0569,2669.4,2669.2,1.87276]
[1724000410088,2.92956,2669.4,2669.1,1.87282]
[1724000410486,1.87273,2669.3,2669.0,1.87289]
[1724000411688,1.87273,2669.3,2668.8,7.3838]
[1724000411689,1.0569,2669.4,2668.8,6.04901]
[1724000411892,1.87291,2669.1,2668.8,6.04901]
[1724000413083,1.87294,2669.0,2668.8,4.176]
[1724000413283,0.725,2668.9,2668.8,6.04907]
[1724000413590,5.08063,2669.2,2668.9,1.87297]
[1724000413782,0.725,2669.3,2668.8,4.176]
[1724000413990,0.725,2669.3,2669.2,1.87279]
[1724000414283,0.725,2669.3,2668.9,0.7393]
[1724000414284,2.59773,2669.3,2669.0,1.87289]
[1724000414691,0.725,2669.3,2669.1,1.87285]
[1724000415396,0.725,2669.3,2669.2,1.87279]
[1724000415614,0.3685,2669.3,2669.2,1.87279]
[1724000415891,1.88210679,2669.6,2669.2,3.7464]
[1724000415892,2.21930679,2669.6,2669.2,3.7464]
[1724000416090,0.3583,2669.5,2669.3,1.87268]
[1724000416292,2.23088,2669.5,2669.3,1.87268]
[1724000416887,2.59278,2669.5,2669.3,1.87268]
[1724000417494,0.7202,2669.5,2669.3,1.87268]
[1724000418092,0.7202,2669.5,2669.4,1.87265]
[1724000420094,0.00956679,2669.6,2669.5,1.87258]
[1724000420292,0.00956679,2669.6,2669.5,2.59628]
[1724000422000,0.00956679,2669.6,2669.5,2.23518]
[1724000424191,0.36026679,2669.6,2669.5,2.23518]
[1724000424700,0.36026679,2669.6,2669.5,1.87258]
[1724000429601,0.00956679,2669.6,2669.5,1.87258]
[1724000431604,0.36476679,2669.6,2669.5,1.87258]
[1724000434603,0.00956679,2669.6,2669.5,1.87258]
[1724000439107,0.00956679,2669.6,2669.5,3.74516]
[1724000439607,0.00956679,2669.6,2669.5,7.49076]
[1724000439807,3.5622,2670.2,2670.1,1.87216]
[1724000440009,7.307,2670.2,2670.1,1.87216]
[1724000440707,3.5622,2670.2,2670.1,1.87216]
[1724000440915,3.56687214,2670.2,2670.1,2.20836]
[1724000441205,3.21247214,2670.2,2670.1,2.20836]
[1724000442102,3.21247214,2670.2,2670.1,3.15236]
[1724000442296,0.00467214,2670.2,2670.1,3.15236]
[1724000442601,0.00467214,2670.2,2670.1,2.20836]
[1724000444120,0.00561935,2670.4,2670.3,3.74404]
[1724000444300,0.00561935,2670.4,2670.3,7.48884]
[1724000445001,0.00885339,2670.4,2670.3,7.49316931]
[1724000447001,0.00885339,2670.4,2670.3,10.70096931]
[1724000447203,0.00885339,2670.4,2670.3,11.00248549]
[1724000447513,0.3681,2670.9,2670.8,1.87167]
[1724000448406,0.37215523,2670.9,2670.8,1.87167]
[1724000449002,0.00405523,2670.9,2670.8,5.61567]
[1724000450512,0.00405523,2670.9,2670.8,1.87167]
[1724000451520,0.00405523,2670.9,2670.8,5.61567]
[1724000452108,0.00405523,2670.9,2670.8,1.87167]
[1724000452308,3.74805523,2670.9,2670.8,1.87167]
[1724000452707,0.00405523,2670.9,2670.8,1.87167]
[1724000453121,3.74805523,2670.9,2670.8,1.87167]
[1724000453512,7.52937932,2672.1,2671.3,1.87128]
[1724000453709,0.362,2671.5,2671.4,1.88939477]
[1724000453907,0.362,2671.5,2671.0,1.88939477]
[1724000454121,2.5716,2671.4,2671.0,3.76091477]
[1724000454511,2.57468297,2671.4,2671.0,3.76091477]
[1724000454716,0.70338297,2671.4,2671.1,1.87144]
[1724000455116,2.57463297,2671.4,2671.1,1.87144]
[1724000455518,2.57463297,2671.4,2671.0,1.87148]
[1724000455817,5.07917,2671.3,2671.0,1.88939477]
[1724000456210,1.8714,2671.2,2671.0,1.88939477]
[1724000456415,3.2078,2671.3,2671.0,1.88939477]
[1724000456617,5.07916,2671.3,2671.0,1.88939477]
[1724000456818,3.2078,2671.3,2671.0,3.76089477]
[1724000457117,5.07914,2671.3,2671.0,3.76089477]
[1724000458220,1.87139,2671.2,2671.0,1.88939477]
[1724000459824,1.87153,2671.0,2670.9,0.00561935]
[1724000460019,5.07933,2671.0,2670.9,0.00561935]
[1724000460214,10.07933,2671.0,2670.9,0.00561935]
[1724000460418,1.87152,2671.1,2670.9,0.00561935]
[1724000460619,0.3495,2671.0,2670.9,0.00561935]
[1724000460827,2.57343,2671.0,2670.9,0.00561935]
[1724000462318,0.7019,2671.0,2670.9,0.00561935]
[1724000462727,1.0515,2671.0,2670.9,0.00561935]
[1724000463824,1.0515,2671.0,2670.9,1.87721935]
[1724000464525,1.0515,2671.0,2670.9,0.00561935]
[1724000465730,0.6991,2671.0,2670.9,3.76661412]
[1724000468529,0.6991,2671.0,2670.9,4.71061412]
[1724000471023,0.3496,2671.0,2670.9,4.71061412]
[1724000473928,0.3496,2671.0,2670.9,2.83901412]
[1724000474134,0.3496,2671.0,2670.9,4.71061412]
[1724000476328,0.3496,2671.0,2670.9,0.00561935]
[1724000476530,0.3496,2671.0,2670.9,1.87721935]
[1724000476831,0.3496,2671.0,2670.9,2.82121935]
[1724000477028,2.24392,2671.2,2671.0,1.87149]
[1724000477233,2.24392,2671.2,2671.1,0.367]
[1724000477432,2.24392,2671.2,2671.1,2.25639477]
[1724000479235,0.3725,2671.2,2671.1,2.25639477]
[1724000479441,3.9134,2671.3,2671.2,1.87139]
[1724000479826,3.2078,2671.3,2671.2,3.76078477]
[1724000480531,0.94961935,2671.5,2671.2,5.07919]
[1724000480532,0.00561935,2671.5,2671.2,5.07919]
[1724000480731,0.00561935,2671.5,2671.4,3.76064477]
[1724000481526,0.00985731,2671.5,2671.4,3.76064477]
[1724000484941,0.00985731,2671.5,2671.4,4.70464477]
[1724000509158,0.00985731,2671.5,2671.4,3.76064477]
[1724000509354,0.00985731,2671.5,2671.4,4.70464477]
[1724000515455,0.00985731,2671.5,2671.4,2.81525]
[1724000516466,0.00985731,2671.5,2671.4,4.70464477]
[1724000518167,0.00985731,2671.5,2671.2,1.87133]
[1724000518168,1.88103731,2671.5,2671.2,1.87133]
[1724000518369,0.00985731,2671.5,2671.3,3.76068477]
[1724000518563,0.3637,2671.4,2671.3,3.76068477]
[1724000520268,0.3637,2671.4,2671.3,4.70468477]
[1724000521669,0.00985731,2671.5,2671.4,1.87125]
[1724000521871,0.00985731,2671.5,2671.4,3.76064477]
[1724000525176,4.33183663,2671.5,2671.4,3.76064477]
[1724000525364,0.00985731,2671.5,2671.4,1.87125]
[1724000525758,2.46080158,2671.5,2671.4,1.87125]
[1724000526165,0.00985731,2671.5,2671.4,1.87125]
[1724000526364,2.46155099,2671.5,2671.4,1.87125]
[1724000526566,0.00985731,2671.5,2671.4,1.87125]
[1724000526868,2.46155099,2671.5,2671.3,0.944]
[1724000527063,2.46155099,2671.5,2671.3,2.83339477]
[1724000527270,2.46155099,2671.5,2671.4,1.87125]
[1724000527470,2.46155099,2671.5,2671.4,3.76064477]
[1724000527471,0.00985731,2671.5,2671.4,3.76064477]
[1724000527662,2.46155099,2671.5,2671.4,1.88939477]
[1724000527865,2.46155099,2671.5,2671.4,3.76064477]
[1724000528664,1.88103731,2671.5,2671.4,3.76064477]
[1724000528863,2.46155099,2671.5,2671.4,3.76064477]
[1724000529171,4.33273099,2671.5,2671.4,1.87125]
[1724000529373,2.46155099,2671.5,2671.4,1.87125]
[1724000529761,6.61335099,2671.5,2671.1,3.21953468]
[1724000530062,1.87137,2671.3,2671.2,1.88939477]
[1724000530566,4.68092648,2671.3,2671.2,1.88939477]
[1724000534265,1.87153,2671.0,2670.9,0.00561935]
[1724000534571,5.07933,2671.0,2670.9,0.00561935]
[1724000536382,1.87153,2671.0,2670.9,0.00561935]
[1724000537470,6.87153,2671.0,2670.9,0.00561935]
[1724000537871,1.87153,2671.0,2670.9,0.00561935]
[1724000538079,6.87153,2671.0,2670.9,0.00561935]
[1724000538489,10.07933,2671.0,2670.9,0.00561935]
[1724000538985,1.87153,2671.0,2670.9,0.00561935]
[1724000539672,5.07933,2671.0,2670.9,0.00561935]
[1724000540080,11.95086,2671.0,2670.9,0.00561935]
[1724000541269,11.95086,2671.0,2670.5,0.3418]
[1724000541270,1.87181,2670.6,2670.5,0.3418]
[1724000541471,0.944,2670.6,2670.3,0.94832931]
[1724000541684,2.81595,2670.4,2670.3,0.00432931]
[1724000541987,0.944,2670.4,2670.3,1.87634931]
[1724000542168,2.95842,2670.5,2670.3,1.87634931]
[1724000542973,1.87185,2670.6,2670.4,2.83339477]
[1724000543181,2.81579,2670.7,2670.5,1.88939477]
[1724000543376,0.3719,2670.8,2670.5,1.88939477]
[1724000543377,2.24362,2670.8,2670.6,2.83339477]
[1724000543689,2.24362,2670.8,2670.7,1.88939477]
[1724000544575,1.87189,2670.5,2670.3,1.87632931]
[1724000544880,1.87195,2670.4,2670.3,0.00432931]
[1724000545083,1.87195,2670.4,2670.3,1.89372408]
[1724000545281,2.22045,2670.4,2670.3,1.89372408]
[1724000546878,2.57025,2670.4,2670.3,1.89372408]
[1724000548783,6.72205,2670.4,2670.3,0.00432931]
[1724000552095,17.3388,2670.4,2670.3,0.00432931]
[1724000552377,4.68818,2670.2,2670.1,0.00561935]
[1724000552780,9.68818,2670.2,2670.1,0.00561935]